[Event "Turkish Youth Teams U18 2024"]
[Site "Karaman"]
[Date "2024.04.24"]
[Round "7"]
[White "Gedik, Eylul Ceren"]
[Black "Yildiz, Elif Zeren"]
[Result "1-0"]
[ECO "A20"]
[WhiteElo "1727"]
[BlackElo "1926"]
[Annotator "RC"]
[PlyCount "111"]
[EventDate "2024.04.21"]
[EventType "team-tourn"]
[EventCountry "TUR"]
[SourceTitle "playchess.com"]
[Source "ChessBase"]
[SourceQuality "1"]
[TimeControl "5400+30"]

1. c4 {[%emt 0:01:00]} e5 {[%emt 0:01:00]} 2. d3 {[%emt 0:00:30]} Nc6 {[%emt 0:00:30]} 3. a3 {[%emt 0:00:00]} a5 {[%emt 0:00:00]} 4. Nf3 {[%emt 0:01:00]} d6 {[%emt 0:00:00]} 5. Nc3 {[%emt 0:01:30]} h6 {[%emt 0:00:30]} 6. e3 {[%emt 0:00:30]} g6 {[%emt 0:00:30]} 7. Be2 {[%emt 0:00:30]} Bg7 {[%emt 0:00:30]} 8. O-O {[%emt 0:00:00]} Nge7 {[%emt 0:00:30]} 9. Rb1 {[%emt 0:00:00]} f5 {[%emt 0:03:30]} 10. d4 {[%emt 0:05:30]} O-O {[%emt 0:03:30]} 11. b4 {[%emt 0:01:30]} axb4 {[%emt 0:01:30]} 12. axb4 {[%emt 0:01:30]} g5 {[%emt 0:02:30]} 13. d5 {[%emt 0:15:30]} Nb8 {[%emt 0:00:30]} 14. Qb3 {[%emt 0:01:30]} Ng6 {[%emt 0:06:30]} 15. c5 {[%emt 0:02:30]} f4 {[%emt 0:07:30]} 16. Ne4 {[%emt 0:12:30]} Bf5 {[%emt 0:07:30]} 17. Nfd2 {[%emt 0:00:30]} Rf7 {[%emt 0:06:30]} 18. cxd6 {[%emt 0:03:30]} cxd6 {[%emt 0:00:30]} 19. Ba3 {[%emt 0:00:30]} Bf8 {[%emt 0:00:30]} 20. b5 {[%emt 0:05:30]} b6 {[%emt 0:02:30]} 21. Bd3 {[%emt 0:01:30]} Kg7 {[%emt 0:07:30]} 22. Nc4 {[%emt 0:01:30]} Bxe4 {[%emt 0:00:30]} 23. Bxe4 {[%emt 0:00:00]} Rf6 {[%emt 0:00:30]} 24. Ra1 {[%emt 0:06:00]} Nd7 {[%emt 0:02:30]} 25. Rfb1 {[%emt 0:00:30]} Qb8 {[%emt 0:03:30]} 26. Bb4 {[%emt 0:14:30]} Rxa1 {[%emt 0:02:30]} 27. Rxa1 {[%emt 0:00:30]} Qc7 {[%emt 0:00:00]} 28. Ra6 {[%emt 0:03:30]} Ne7 {[%emt 0:01:00]} 29. Qa2 {[%emt 0:01:30]} Nc8 {[%emt 0:00:30]} 30. Ra8 {[%emt 0:01:25]} Be7 {[%emt 0:00:30]} 31. Bd3 {[%emt 0:01:16]} Rf8 {[%emt 0:06:30]} 32. Bb1 {[%emt 0:04:24]} Rf6 {[%emt 0:06:30]} 33. Qc2 {[%emt 0:00:01]} Nf8 {[%emt 0:00:30]} 34. Ra3 {[%emt 0:01:17]} Qd7 {[%emt 0:03:30]} 35. Rb3 {[%emt 0:02:51]} f3 {[%emt 0:01:30]} 36. Qe4 {[%emt 0:01:25]} Qxb5 {[%emt 0:01:30]} 37. Bd3 {[%emt 0:00:30]} Qa4 {[%emt 0:00:30]} 38. Rb1 {[%emt 0:00:30]} fxg2 {[%emt 0:03:30]} 39. h4 {[%emt 0:02:44]} Qd7 {[%emt 0:02:29]} 40. Qxg2 {[%emt 0:00:59]} g4 {[%emt 0:02:10]} 41. h5 {[%emt 0:01:49]} Nh7 {[%emt 0:04:27]} 42. Nd2 {[%emt 0:01:20]} Rf7 {[%emt 0:01:59]} 43. Ne4 {[%emt 0:01:16]} Kg8 {[%emt 0:03:02]} 44. Kf1 {[%emt 0:02:36]} Bh4 {[%emt 0:01:07]} 45. Be1 {[%emt 0:00:53]} Bg5 {[%emt 0:02:12]} 46. Ke2 {[%emt 0:00:41]} Rf3 {[%emt 0:02:22]} 47. Nd2 {[%emt 0:00:31]} Rf7 {[%emt 0:00:30]} 48. Bg6 {[%emt 0:00:30]} Rf8 {[%emt 0:00:30]} 49. Ne4 {[%emt 0:00:30]} b5 {[%emt 0:01:44]} 50. Bb4 {[%emt 0:01:50]} Nf6 {[%emt 0:00:30]} 51. Nxf6+ {[%emt 0:00:30]} Rxf6 {[%emt 0:00:30]} 52. Rg1 {[%emt 0:00:30]} Bh4 {[%emt 0:00:30]} 53. Be1 {[%emt 0:00:00]} g3 {[%emt 0:01:27]} 54. f3 {[%emt 0:00:47]} Qa7 {[%emt 0:00:41]} 55. Qh3 {[%emt 0:01:24]} Rxg6 {[%emt 0:00:33]} 56. Qxc8+ {[%emt 0:00:01]} 1-0

[Event "Turkish Youth Teams U18 2024"]
[Site "Karaman"]
[Date "2024.04.24"]
[Round "7"]
[White "Mullakutukcu, Ela"]
[Black "Nurdogan, Ilgin Destina"]
[Result "0-1"]
[ECO "B50"]
[WhiteElo "1693"]
[BlackElo "1633"]
[Annotator "NA RC"]
[PlyCount "70"]
[EventDate "2024.04.21"]
[EventType "team-tourn"]
[EventCountry "TUR"]
[SourceTitle "playchess.com"]
[Source "ChessBase"]
[SourceQuality "1"]
[TimeControl "5400+30"]

1. e4 {[%emt 1:31:00]} c5 {[%emt 1:31:00]} 2. Nf3 {[%emt 0:00:30]} d6 {[%emt 0:00:30]} 3. c3 {[%emt 0:00:30]} Nf6 {[%emt 0:00:30]} 4. Be2 {[%emt 0:00:30]} Bd7 {[%emt 0:00:30]} 5. d3 {[%emt 0:00:30]} Nc6 {[%emt 0:00:30]} 6. h3 {[%emt 0:00:30]} e6 {[%emt 0:00:30]} 7. Be3 {[%emt 0:00:30]} Be7 {[%emt 0:00:30]} 8. Nbd2 {[%emt 0:00:30]} a6 {[%emt 0:00:30]} 9. d4 {[%emt 0:00:30]} O-O {[%emt 0:00:30]} 10. O-O {[%emt 0:00:30]} b5 {[%emt 0:00:30]} 11. a3 {[%emt 0:00:30]} Qc7 {[%emt 0:00:30]} 12. Qc2 {[%emt 0:00:30]} Rfc8 {[%emt 0:00:30]} 13. Rfc1 {[%emt 0:00:30]} Qb8 {[%emt 0:00:30]} 14. Qd1 {[%emt 0:00:30]} a5 {[%emt 0:00:30]} 15. Bd3 {[%emt 0:00:30]} h6 {[%emt 0:00:30]} 16. Rab1 {[%emt 0:00:30]} Be8 {[%emt 0:00:30]} 17. Bc2 {[%emt 0:00:30]} b4 {[%emt 0:00:30]} 18. c4 {[%emt 0:00:30]} cxd4 {[%emt 0:00:30]} 19. Nxd4 {[%emt 0:00:30]} Nxd4 {[%emt 0:00:30]} 20. Bxd4 {[%emt 0:00:30]} Bc6 {[%emt 0:00:30]} 21. Qe2 {[%emt 0:00:30]} Qb7 {[%emt 0:00:30]} 22. f3 {[%emt 0:00:30]} Nd7 {[%emt 0:00:30]} 23. Qf2 {[%emt 0:00:30]} Bf8 {[%emt 0:00:30]} 24. f4 {[%emt 0:00:30]} Nc5 {[%emt 0:00:30]} 25. Bxc5 {[%emt 0:00:30]} dxc5 {[%emt 0:00:30]} 26. Qe2 {[%emt 0:00:30]} a4 {[%emt 0:00:30]} 27. e5 {[%emt 0:00:30]} Rd8 {[%emt 0:00:30]} 28. Ne4 {[%emt 0:00:30]} b3 {[%emt 0:00:30]} 29. Nd6 {[%emt 0:00:30]} Bxd6 {[%emt 0:00:30]} 30. exd6 {[%emt 0:00:30]} bxc2 {[%emt 0:00:30]} 31. Qxc2 {[%emt 0:00:30]} Be4 {[%emt 0:00:30]} 32. Qd2 {[%emt 0:00:30]} Bxb1 {[%emt 0:00:30]} 33. Rxb1 {[%emt 0:00:30]} Ra6 {[%emt 0:00:30]} 34. b4 {[%emt 0:00:30]} Raxd6 {[%emt 0:00:30]} 35. Qc2 {[%emt 0:00:30]} Rd2 {[%emt 0:00:30]} 0-1

[Event "Turkish Youth Teams U18 2024"]
[Site "Karaman"]
[Date "2024.04.24"]
[Round "7"]
[White "Gunaydin, Mehmet Emir"]
[Black "Karabulut, Etka"]
[Result "0-1"]
[ECO "B22"]
[WhiteElo "1688"]
[BlackElo "1815"]
[Annotator "NA RC"]
[PlyCount "106"]
[EventDate "2024.04.21"]
[EventType "team-tourn"]
[EventCountry "TUR"]
[SourceTitle "playchess.com"]
[Source "ChessBase"]
[SourceQuality "1"]
[TimeControl "5400+30"]

1. e4 {[%emt 0:01:00]} c5 {[%emt 0:01:00]} 2. c3 {[%emt 0:00:30]} Nf6 {[%emt 0:00:30]} 3. e5 {[%emt 0:00:30]} Nd5 {[%emt 0:00:30]} 4. d4 {[%emt 0:00:30]} cxd4 {[%emt 0:00:00]} 5. Nf3 {[%emt 0:00:00]} Nc6 {[%emt 0:00:00]} 6. Bc4 {[%emt 0:03:00]} Nb6 {[%emt 0:00:30]} 7. Bb3 {[%emt 0:00:00]} d5 {[%emt 0:00:00]} 8. exd6 {[%emt 0:00:00]} Qxd6 {[%emt 0:00:00]} 9. O-O {[%emt 0:00:00]} e6 {[%emt 0:01:30]} 10. Na3 {[%emt 0:04:00]} a6 {[%emt 0:02:30]} 11. Nxd4 {[%emt 0:08:30]} Nxd4 {[%emt 0:01:30]} 12. cxd4 {[%emt 0:00:30]} Be7 {[%emt 0:00:30] B22: Sicilian: 2 c3.} 13. Be3 {[%emt 0:01:30]} O-O {[%emt 0:02:30]} 14. Qd2 {[%emt 0:04:30]} Bf6 {[%emt 0:02:30]} 15. Rac1 {[%emt 0:06:30]} Bd7 {[%emt 0:04:30]} 16. Rfd1 {[%emt 0:05:30]} Bc6 {[%emt 0:00:30]} 17. d5 {[%emt 0:13:30]} Nxd5 {[%emt 0:01:30]} (17... Bxd5 18. Bc5 Qd8 19. Bxf8 (19. Qb4 Bxb2 20. Rb1 a5 $11) 19... Qxf8 20. Bxd5 Nxd5 21. Qe2 $14) 18. Bc5 {[%emt 0:00:30] [#]} Qe5 $1 {[%emt 0:07:30]} 19. Bxd5 {[%emt 0:06:30] [#]} Rfd8 $1 {[%emt 0:02:30]} 20. Nc4 {[%emt 0:25:51]} Qxd5 {[%emt 0:00:30]} 21. Qxd5 {[%emt 0:00:30]} Rxd5 {[%emt 0:00:30]} 22. Rxd5 {[%emt 0:04:05]} Bxd5 {[%emt 0:00:00]} 23. Nb6 {[%emt 0:02:10]} Rd8 {[%emt 0:00:00]} 24. Nxd5 {[%emt 0:03:02]} Rxd5 {[%emt 0:00:30]} 25. b4 {[%emt 0:03:38]} h6 {[%emt 0:00:30]} 26. h3 $19 {[%emt 0:00:27]} (26. Kf1 $17 {was called for.}) 26... b5 {[%emt 0:00:30]} 27. Rc2 {[%emt 0:01:14]} Rd1+ {[%emt 0:00:30]} 28. Kh2 {[%emt 0:00:30]} Rb1 {[%emt 0:00:30]} 29. Bd6 {[%emt 0:00:30]} Rb2 {[%emt 0:00:30]} 30. Rxb2 {[%emt 0:01:01]} Bxb2 {[%emt 0:00:00]} 31. Kg3 {[%emt 0:00:03]} e5 {[%emt 0:02:00]} 32. Kf3 {[%emt 0:01:32]} f5 {[%emt 0:00:00]} 33. g4 {[%emt 0:01:52]} g6 {[%emt 0:00:00]} 34. h4 {[%emt 0:00:21]} h5 {[%emt 0:00:00]} 35. g5 {[%emt 0:02:22]} Kf7 {[%emt 0:00:00]} 36. Bc5 {[%emt 0:00:16]} Ke6 {[%emt 0:00:30]} 37. Ke3 {[%emt 0:00:59]} Kd5 {[%emt 0:00:00]} 38. Kd3 {[%emt 0:00:21]} e4+ {[%emt 0:00:00]} 39. Ke3 {[%emt 0:00:48]} Be5 {[%emt 0:00:30]} 40. Be7 {[%emt 0:00:32]} f4+ {[%emt 0:00:00]} 41. Ke2 {[%emt 0:00:48]} f3+ {[%emt 0:00:00]} 42. Kd2 {[%emt 0:00:17]} Bd4 {[%emt 0:00:30]} 43. Ke1 {[%emt 0:00:39]} e3 {[%emt 0:00:30]} 44. fxe3 {[%emt 0:00:52]} Bxe3 {[%emt 0:00:30]} 45. Kf1 {[%emt 0:00:25]} Ke4 {[%emt 0:00:30]} 46. Bd6 {[%emt 0:00:26]} Bf4 {[%emt 0:00:00]} 47. Bc5 {[%emt 0:00:52]} Bg3 {[%emt 0:00:00]} 48. Bf2 {[%emt 0:00:22]} Bxf2 {[%emt 0:00:30]} 49. Kxf2 {[%emt 0:00:30]} Kf4 {[%emt 0:00:30]} 50. Kf1 {[%emt 0:00:00]} Kg3 {[%emt 0:00:00]} 51. Kg1 {[%emt 0:00:00]} f2+ {[%emt 0:00:00]} 52. Kf1 {[%emt 0:00:00]} Kf3 {[%emt 0:00:00]} 53. a3 {[%emt 0:01:03]} Ke3 {[%emt 0:00:00]} 0-1

[Event "Turkish Youth Teams U18 2024"]
[Site "Karaman"]
[Date "2024.04.24"]
[Round "7"]
[White "Acar, Zeynep"]
[Black "Ozgor, Ezel"]
[Result "1-0"]
[ECO "D36"]
[WhiteElo "1671"]
[BlackElo "1741"]
[Annotator "NA RC"]
[PlyCount "64"]
[EventDate "2024.04.21"]
[EventType "team-tourn"]
[EventCountry "TUR"]
[SourceTitle "playchess.com"]
[Source "ChessBase"]
[SourceQuality "1"]
[TimeControl "5400+30"]

1. d4 {[%emt 0:01:00]} Nf6 {[%emt 0:01:00]} 2. c4 {[%emt 0:00:30]} e6 {[%emt 0:00:30]} 3. Nc3 {[%emt 0:00:30]} d5 {[%emt 0:00:00]} 4. cxd5 {[%emt 0:00:00]} exd5 {[%emt 0:00:00]} 5. Bg5 {[%emt 0:00:00]} Be7 {[%emt 0:00:30]} 6. e3 {[%emt 0:00:00]} c6 {[%emt 0:00:00]} 7. Bd3 {[%emt 0:00:00]} O-O {[%emt 0:01:00]} 8. Qc2 {[%emt 0:00:30]} h6 {[%emt 0:00:00]} 9. Bh4 {[%emt 0:00:00]} Re8 {[%emt 0:02:00]} 10. Nge2 {[%emt 0:00:00]} Nbd7 {[%emt 0:00:30]} 11. O-O {[%emt 0:01:30]} Nf8 {[%emt 0:20:30]} 12. f3 {[%emt 0:00:30]} Ne6 {[%emt 0:00:30]} 13. Bf2 {[%emt 0:05:30]} b6 {[%emt 0:06:30]} 14. Rad1 {[%emt 0:02:30]} Bb7 {[%emt 0:00:30]} 15. Ng3 {[%emt 0:06:30]} c5 {[%emt 0:05:30]} 16. dxc5 {[%emt 0:09:30]} Bxc5 {[%emt 0:01:30]} 17. Bb5 {[%emt 0:00:30]} Rf8 {[%emt 0:03:30]} 18. Kh1 {[%emt 0:06:30]} Qc8 {[%emt 0:06:30]} 19. Nf5 {[%emt 0:02:30]} Nc7 {[%emt 0:02:30]} 20. Ba4 {[%emt 0:03:30]} Ne6 {[%emt 0:04:30]} 21. Bb3 {[%emt 0:02:30]} Rd8 {[%emt 0:01:30]} 22. Bh4 {[%emt 0:02:30]} Ng5 {[%emt 0:04:30]} 23. f4 {[%emt 0:10:30]} Nge4 {[%emt 0:02:30]} 24. Nxe4 {[%emt 0:03:30]} dxe4 {[%emt 0:04:30]} 25. Nxh6+ {[%emt 0:00:30]} gxh6 {[%emt 0:00:00]} 26. Bxf6 {[%emt 0:02:30]} Rxd1 {[%emt 0:01:00]} 27. Rxd1 {[%emt 0:01:30]} Qf5 {[%emt 0:00:30]} 28. Be5 {[%emt 0:02:30]} Rc8 {[%emt 0:07:30]} 29. Qf2 {[%emt 0:01:30]} Kh7 {[%emt 0:00:30]} 30. Qh4 {[%emt 0:01:30]} Bf8 {[%emt 0:13:10]} 31. g4 {[%emt 0:01:30]} Qg6 {[%emt 0:01:01]} 32. Rd7 {[%emt 0:01:30]} Ra8 {[%emt 0:06:02]} 1-0

[Event "Turkish Youth Teams U18 2024"]
[Site "Karaman"]
[Date "2024.04.24"]
[Round "7"]
[White "Topak, Elif Sinem"]
[Black "Buyuk, Ecrin Efsa"]
[Result "0-1"]
[ECO "B15"]
[WhiteElo "1643"]
[BlackElo "1949"]
[Annotator "TA"]
[PlyCount "62"]
[EventDate "2024.04.21"]
[EventType "team-tourn"]
[EventCountry "TUR"]
[SourceTitle "playchess.com"]
[Source "ChessBase"]
[SourceQuality "1"]
[TimeControl "5400+30"]

{[%evp 19,62,27,41,0,24,0,0,-35,8,-32,20,-17,0,-17,0,-16,0,0,0,-93,-37,-155,-36,-236,-238,-248,-246,-256,-245,-265,-251,-247,-250,-299,-225,-297,-306,-329,-329,-1052,-1027,-6395,-6283,-6395,-6395]} 1. e4 {[%emt 0:01:00]} c6 {[%emt 0:01:00]} 2. d4 {[%emt 0:00:30]} d5 {[%emt 0:00:00]} 3. Nc3 {[%emt 0:00:00]} dxe4 {[%emt 0:00:00]} 4. Nxe4 {[%emt 0:00:00]} Nf6 {[%emt 0:00:30]} 5. Nxf6+ {[%emt 0:00:30]} exf6 {[%emt 0:00:00]} 6. c3 {[%emt 0:00:00]} Bd6 {[%emt 0:00:00]} 7. Bd3 {[%emt 0:00:00]} O-O {[%emt 0:00:00]} 8. Qc2 {[%emt 0:00:30]} Re8+ {[%emt 0:00:00]} 9. Ne2 {[%emt 0:00:30]} h6 {[%emt 0:00:30]} 10. Be3 {[%emt 0:00:30]} Nd7 {[%emt 0:00:00]} 11. c4 {[%emt 0:05:30]} Nf8 {[%emt 0:01:00]} 12. O-O-O {[%emt 0:02:30]} Be6 {[%emt 0:02:30]} 13. Qd2 {[%emt 0:13:30] The position is equal.} f5 {[%emt 0:12:30][%cal Ob7b5]} 14. h4 {[%emt 0:31:30]} h5 {[%emt 0:20:30]} ({Better is} 14... b5 $15 15. d5 cxd5) 15. Bf4 {[%emt 0:15:30]} g6 {[%emt 0:13:30]} 16. Rhe1 {[%emt 0:12:07]} Rc8 {[%emt 0:04:30]} 17. Kb1 {[%emt 0:00:56]} Bxf4 {[%emt 0:00:30]} 18. Qxf4 {[%emt 0:00:15]} b5 {[%emt 0:01:30]} 19. c5 {[%emt 0:01:43]} (19. cxb5 cxb5 (19... Qa5 20. b3 $15) 20. g3 (20. Bxb5 $2 {perishes.} Qd5 $19) 20... Qa5 $17) (19. d5 $1 $11 bxc4 (19... cxd5 20. cxb5 Bd7 21. Qb4 $14) 20. dxe6 cxd3 21. exf7+ Kxf7 22. Qb4 (22. Qc4+ Qd5 $17)) 19... a5 {[%emt 0:03:30]} (19... Rc7 $17 20. Qg3 Rd7) 20. Qg5 {[%emt 0:05:01]} ({White should play} 20. Nc3 $15) 20... Qd5 {[%emt 0:03:30]} (20... Qxg5 $17 21. hxg5 Rcd8) 21. Nc3 $2 {[%emt 0:01:55] Loses the game.} (21. b3 $15) 21... Qxd4 $19 {[%emt 0:13:30][%cal Oe6a2] [#] ...Bxa2+! is the strong threat.} 22. Bxb5 {[%emt 0:03:16]} Qxf2 {[%emt 0:04:51]} 23. Re2 {[%emt 0:01:44]} Qxc5 {[%emt 0:00:30]} 24. Ba4 {[%emt 0:00:30]} Nh7 {[%emt 0:00:30]} 25. Qf4 {[%emt 0:00:30]} Nf6 {[%emt 0:00:30]} 26. Rc2 {[%emt 0:00:30]} Qb6 {[%emt 0:00:30][%cal Of6e4]} 27. Ka1 {[%emt 0:02:24]} Nd5 {[%emt 0:02:11]} 28. Nxd5 {[%emt 0:00:35]} Bxd5 {[%emt 0:00:14]} 29. Rcd2 $2 {[%emt 0:00:38] [#]} (29. Qc1 Qb4 (29... Re4 $2 30. Rxd5 Rxa4 31. Rd6 $19) 30. Rxd5 Qxa4 31. b3 Qxh4 32. Rd1) 29... Re4 {[%emt 0:00:16] Black is clearly winning.} 30. Qd6 {[%emt 0:00:53]} Rxa4 {[%emt 0:01:28]} 31. Rxd5 {[%emt 0:00:21]} Qb3 {[%emt 0:00:00] Weighted Error Value: White=0.97/Black=0.25 (precise) .  Loses game:     	White=1     	---        Mistake:       	White=3     	Black=3      Inaccurate:     	White=5     	Black=1      OK:         	White=4     	Black=5      Best:        	---       	Black=2} 0-1

[Event "Turkish Youth Teams U18 2024"]
[Site "Karaman"]
[Date "2024.04.24"]
[Round "7"]
[White "Oztay, Rezzan"]
[Black "Karadas, Hena"]
[Result "1/2-1/2"]
[ECO "A13"]
[WhiteElo "1608"]
[BlackElo "1775"]
[Annotator "NA RC"]
[PlyCount "60"]
[EventDate "2024.04.21"]
[EventType "team-tourn"]
[EventCountry "TUR"]
[SourceTitle "playchess.com"]
[Source "ChessBase"]
[SourceQuality "1"]
[TimeControl "5400+30"]

1. Nf3 Nf6 2. c4 e6 3. e3 d5 4. Be2 Bd6 5. O-O O-O 6. d4 a6 7. Nc3 dxc4 8. Bxc4 b5 9. Bd3 Bb7 10. Ng5 h6 11. Nge4 Nxe4 12. Nxe4 Bxe4 13. Bxe4 Qh4 14. f4 Ra7 15. b3 c5 16. Bb2 Rd7 17. Rf3 cxd4 18. Qxd4 f6 19. Qb6 Qh5 20. Rc1 Qe8 21. Bc6 Qd8 22. Qxd8 Rdxd8 23. f5 exf5 24. Rxf5 Kh8 25. Kh1 Kg8 26. Kg1 Kh8 27. Kh1 Kg8 28. Kg1 Kh8 29. Kh1 Kg8 30. Kg1 Kh8 1/2-1/2

[Event "Turkish Youth Teams U18 2024"]
[Site "Karaman"]
[Date "2024.04.24"]
[Round "7"]
[White "Aydin, Erem"]
[Black "Iyican, Sude"]
[Result "1/2-1/2"]
[ECO "B00"]
[WhiteElo "1546"]
[BlackElo "1562"]
[Annotator "NA RC"]
[PlyCount "94"]
[EventDate "2024.04.21"]
[EventType "team-tourn"]
[EventCountry "TUR"]
[SourceTitle "playchess.com"]
[Source "ChessBase"]
[SourceQuality "1"]
[TimeControl "5400+30"]

1. e4 {[%emt 0:01:00]} e6 {[%emt 0:01:00]} 2. d4 {[%emt 0:00:30]} b6 {[%emt 0:00:30]} 3. Nf3 {[%emt 0:00:30]} Bb7 {[%emt 0:00:00]} 4. Bd3 {[%emt 0:00:30]} Nf6 {[%emt 0:00:00]} 5. Bg5 {[%emt 0:02:30]} Be7 {[%emt 0:00:30]} 6. e5 {[%emt 0:00:30]} Nd5 {[%emt 0:01:30]} 7. Bxe7 {[%emt 0:00:30]} Nxe7 {[%emt 0:00:30]} 8. Nbd2 {[%emt 0:00:30]} Ng6 {[%emt 0:01:30]} 9. O-O {[%emt 0:02:30]} Nf4 {[%emt 0:03:30]} 10. Be4 {[%emt 0:03:30]} Nc6 {[%emt 0:07:30]} 11. g3 {[%emt 0:14:30]} Ng6 {[%emt 0:03:30]} 12. Re1 {[%emt 0:06:30]} O-O {[%emt 0:01:30]} 13. c3 {[%emt 0:03:30]} f5 {[%emt 0:03:30]} 14. exf6 {[%emt 0:04:30]} Qxf6 {[%emt 0:00:00]} 15. Qc2 {[%emt 0:03:30]} Kh8 {[%emt 0:05:00]} 16. Re2 {[%emt 0:06:30]} Nge7 {[%emt 0:04:30]} 17. Ne5 {[%emt 0:08:30]} Ba6 {[%emt 0:15:30]} 18. Nxd7 {[%emt 0:02:30]} Qf7 {[%emt 0:00:30]} 19. Bd3 {[%emt 0:01:30]} Bxd3 {[%emt 0:07:30]} 20. Qxd3 {[%emt 0:00:00]} Rfd8 {[%emt 0:01:30]} 21. Ne5 {[%emt 0:01:00]} Nxe5 {[%emt 0:02:30]} 22. Rxe5 {[%emt 0:00:00]} Nc6 {[%emt 0:00:30]} 23. Re2 {[%emt 0:02:00]} e5 {[%emt 0:01:30]} 24. Qe4 {[%emt 0:02:30]} Qd5 {[%emt 0:02:30]} 25. Qxd5 {[%emt 0:09:30]} Rxd5 {[%emt 0:00:30]} 26. Rae1 {[%emt 0:03:30]} Kg8 {[%emt 0:07:30]} 27. dxe5 {[%emt 0:02:23]} Nxe5 {[%emt 0:00:30]} 28. Rxe5 {[%emt 0:00:54]} Rxd2 {[%emt 0:00:00]} 29. R1e2 {[%emt 0:01:36]} Rad8 {[%emt 0:00:00]} 30. Kg2 {[%emt 0:01:23]} Kf8 {[%emt 0:01:30]} 31. Kf3 {[%emt 0:01:04]} Rxe2 {[%emt 0:04:30]} 32. Kxe2 {[%emt 0:00:56]} Kf7 {[%emt 0:00:30]} 33. f4 {[%emt 0:00:29]} Rd6 {[%emt 0:00:30]} 34. Ke3 {[%emt 0:00:56]} Rh6 {[%emt 0:03:30]} 35. h4 {[%emt 0:00:01]} Rg6 {[%emt 0:00:00]} 36. Kf3 {[%emt 0:00:22]} Rd6 {[%emt 0:01:00]} 37. h5 {[%emt 0:02:07]} Rd3+ {[%emt 0:02:30]} 38. Re3 {[%emt 0:00:30]} Rd2 {[%emt 0:00:30]} 39. Re2 {[%emt 0:00:30]} Rd5 {[%emt 0:03:06]} 40. g4 {[%emt 0:01:15]} Rd3+ {[%emt 0:00:31]} 41. Ke4 {[%emt 0:01:04]} Rd6 {[%emt 0:01:30]} 42. f5 {[%emt 0:01:46]} Kf6 {[%emt 0:00:44]} 43. Kf4 {[%emt 0:00:27]} h6 {[%emt 0:01:16]} 44. a3 {[%emt 0:03:28]} Rc6 {[%emt 0:09:17]} 45. Rd2 {[%emt 0:00:54]} Rc4+ {[%emt 0:03:24]} 46. Rd4 {[%emt 0:00:44]} Rc5 {[%emt 0:01:06]} 47. Re4 {[%emt 0:03:36]} Rc6 {[%emt 0:01:29]} 1/2-1/2